[Event "Titled Tuesday Blitz July 05 Late 2022"]
[White "Huber, Benedikt"]
[Black "Tokhirjonova, Gulrukhbegim"]
[WhiteFideId "12923583"]
[BlackFideId "14203626"]
[WhiteElo "1979"]
[BlackElo "2227"]
[Result "1-0"]
[Round "06"]
[TimeControl "180+1"]
[Date "2022.07.06"]
[WhiteClock "0:00:10"]
[BlackClock "0:00:35"]

1. d4 {[%clk 0:03:00]}  Nf6 {[%clk 0:02:59]} 2. Nc3 {[%clk 0:02:59]}  d5 {[%clk 0:02:54]} 3. Bf4 {[%clk 0:02:57]}  e6 {[%clk 0:02:40]} 4. Nb5 {[%clk 0:02:56]}  Na6 {[%clk 0:02:40]} 5. e3 {[%clk 0:02:56]}  c6 {[%clk 0:02:38]} 6. Nc3 {[%clk 0:02:55]}  Nc7 {[%clk 0:02:38]} 7. Nf3 {[%clk 0:02:53]}  Bd6 {[%clk 0:02:38]} 8. Bd3 {[%clk 0:02:48]}  O-O {[%clk 0:02:37]} 9. O-O {[%clk 0:02:46]}  a6 {[%clk 0:02:37]} 10. Bxd6 {[%clk 0:02:40]}  Qxd6 {[%clk 0:02:36]} 11. e4 {[%clk 0:02:41]}  dxe4 {[%clk 0:02:31]} 12. Nxe4 {[%clk 0:02:42]}  Nxe4 {[%clk 0:02:31]} 13. Bxe4 {[%clk 0:02:42]}  h6 {[%clk 0:02:31]} 14. Qe2 {[%clk 0:02:41]}  Nd5 {[%clk 0:02:31]} 15. Rfd1 {[%clk 0:02:36]}  Bd7 {[%clk 0:02:20]} 16. c4 {[%clk 0:02:30]}  Nf6 {[%clk 0:02:19]} 17. Bc2 {[%clk 0:02:28]}  Rad8 {[%clk 0:02:16]} 18. c5 {[%clk 0:02:12]}  Qf4 {[%clk 0:02:06]} 19. Ne5 {[%clk 0:02:06]}  Bc8 {[%clk 0:02:02]} 20. g3 {[%clk 0:01:43]}  Qg5 {[%clk 0:02:01]} 21. Rd2 {[%clk 0:01:15]}  Nd5 {[%clk 0:01:56]} 22. h4 {[%clk 0:01:07]}  Qe7 {[%clk 0:01:50]} 23. a3 {[%clk 0:00:59]}  Qe8 {[%clk 0:01:41]} 24. Re1 {[%clk 0:00:47]}  f5 {[%clk 0:01:41]} 25. Nc4 {[%clk 0:00:39]}  Qg6 {[%clk 0:01:34]} 26. Ne5 {[%clk 0:00:38]}  Qf6 {[%clk 0:01:32]} 27. f4 {[%clk 0:00:35]}  g5 {[%clk 0:01:25]} 28. hxg5 {[%clk 0:00:34]}  hxg5 {[%clk 0:01:25]} 29. Qh5 {[%clk 0:00:11]}  gxf4 {[%clk 0:01:21]} 30. gxf4 {[%clk 0:00:10]}  Nxf4 {[%clk 0:01:21]} 31. Qh2 {[%clk 0:00:11]}  Qg5+ {[%clk 0:01:04]} 32. Kh1 {[%clk 0:00:11]}  Qh5 {[%clk 0:01:00]} 33. Rg1+ {[%clk 0:00:10]}  Kh7 {[%clk 0:00:59]} 34. Qxh5+ {[%clk 0:00:10]}  Nxh5 {[%clk 0:01:00]} 35. Rh2 {[%clk 0:00:10]}  Rf6 {[%clk 0:00:50]} 36. Rxh5+ {[%clk 0:00:10]}  Rh6 {[%clk 0:00:50]} 37. Rxh6+ {[%clk 0:00:11]}  Kxh6 {[%clk 0:00:51]} 38. Nf7+ {[%clk 0:00:11]}  Kh5 {[%clk 0:00:52]} 39. Nxd8 {[%clk 0:00:12]}  f4 {[%clk 0:00:51]} 40. Be4 {[%clk 0:00:12]}  e5 {[%clk 0:00:51]} 41. dxe5 {[%clk 0:00:12]}  Bh3 {[%clk 0:00:51]} 42. Bf3+ {[%clk 0:00:12]}  Kh4 {[%clk 0:00:51]} 43. Nf7 {[%clk 0:00:10]}  a5 {[%clk 0:00:50]} 44. Ng5 {[%clk 0:00:10]}  Bd7 {[%clk 0:00:47]} 45. e6 {[%clk 0:00:10]}  Be8 {[%clk 0:00:47]} 46. e7 {[%clk 0:00:10]}  a4 {[%clk 0:00:48]} 47. Ne6 {[%clk 0:00:09]}  b5 {[%clk 0:00:48]} 48. Ng7 {[%clk 0:00:09]}  Bd7 {[%clk 0:00:47]} 49. e8=Q {[%clk 0:00:09]}  Bxe8 {[%clk 0:00:48]} 50. Nxe8 {[%clk 0:00:10]}  b4 {[%clk 0:00:48]} 51. Rg4+ {[%clk 0:00:10]}  Kh3 {[%clk 0:00:48]} 52. Nf6 {[%clk 0:00:09]}  bxa3 {[%clk 0:00:48]} 53. Ne4 {[%clk 0:00:09]}  axb2 {[%clk 0:00:35]} 54. Ng5# {[%clk 0:00:10]} 1-0


[Site "https://www.chess.com"]

[Event "Titled Tuesday Blitz July 05 Late 2022"]
[White "Janaszak, Dawid"]
[Black "Kosteniuk, Alexandra"]
[WhiteFideId "1119206"]
[BlackFideId "4128125"]
[WhiteElo "2199"]
[BlackElo "2469"]
[Result "0-1"]
[Round "06"]
[TimeControl "180+1"]
[Date "2022.07.05"]
[WhiteClock "0:00:02"]
[BlackClock "0:00:08"]

1. e4 {[%clk 0:03:00]}  c6 {[%clk 0:02:57]} 2. d4 {[%clk 0:03:00]}  d5 {[%clk 0:02:57]} 3. exd5 {[%clk 0:03:01]}  cxd5 {[%clk 0:02:57]} 4. Bd3 {[%clk 0:03:02]}  Nc6 {[%clk 0:02:57]} 5. c3 {[%clk 0:03:02]}  Nf6 {[%clk 0:02:58]} 6. Bf4 {[%clk 0:03:02]}  Bg4 {[%clk 0:02:54]} 7. Qb3 {[%clk 0:03:02]}  e5 {[%clk 0:02:54]} 8. h3 {[%clk 0:03:01]}  exf4 {[%clk 0:02:46]} 9. hxg4 {[%clk 0:03:01]}  Qc7 {[%clk 0:02:39]} 10. g5 {[%clk 0:02:51]}  Nd7 {[%clk 0:02:39]} 11. Qxd5 {[%clk 0:02:43]}  O-O-O {[%clk 0:02:39]} 12. Qf5 {[%clk 0:02:23]}  g6 {[%clk 0:02:08]} 13. Qxf7 {[%clk 0:02:19]}  Be7 {[%clk 0:02:06]} 14. Ne2 {[%clk 0:02:04]}  Bxg5 {[%clk 0:02:02]} 15. Nd2 {[%clk 0:01:53]}  Rhe8 {[%clk 0:01:20]} 16. Rxh7 {[%clk 0:01:28]}  Be7 {[%clk 0:00:38]} 17. O-O-O {[%clk 0:01:09]}  Nde5 {[%clk 0:00:33]} 18. dxe5 {[%clk 0:00:59]}  Nxe5 {[%clk 0:00:34]} 19. Qe6+ {[%clk 0:00:54]}  Kb8 {[%clk 0:00:30]} 20. Bxg6 {[%clk 0:00:50]}  Nxg6 {[%clk 0:00:23]} 21. Qxg6 {[%clk 0:00:48]}  Qa5 {[%clk 0:00:24]} 22. Kb1 {[%clk 0:00:35]}  Bc5 {[%clk 0:00:22]} 23. Nc1 {[%clk 0:00:24]}  Bxf2 {[%clk 0:00:20]} 24. Qf7 {[%clk 0:00:19]}  Qb5 {[%clk 0:00:19]} 25. a4 {[%clk 0:00:15]}  Qb6 {[%clk 0:00:17]} 26. Nc4 {[%clk 0:00:14]}  Qc6 {[%clk 0:00:09]} 27. Rxd8+ {[%clk 0:00:09]}  Rxd8 {[%clk 0:00:10]} 28. Na5 {[%clk 0:00:06]}  Qe4+ {[%clk 0:00:10]} 29. Nd3 {[%clk 0:00:04]}  Qxd3+ {[%clk 0:00:09]} 30. Ka2 {[%clk 0:00:05]}  Qd5+ {[%clk 0:00:08]} 31. Qxd5 {[%clk 0:00:05]}  Rxd5 {[%clk 0:00:09]} 32. Nxb7 {[%clk 0:00:05]}  Rg5 {[%clk 0:00:08]} 33. b4 {[%clk 0:00:05]}  Rxg2 {[%clk 0:00:08]} 34. Kb3 {[%clk 0:00:05]}  Be1 {[%clk 0:00:08]} 35. Na5 {[%clk 0:00:05]}  f3 {[%clk 0:00:08]} 36. Nc6+ {[%clk 0:00:06]}  Kc8 {[%clk 0:00:08]} 37. Nxa7+ {[%clk 0:00:06]}  Kd8 {[%clk 0:00:08]} 38. Nc6+ {[%clk 0:00:06]}  Kc8 {[%clk 0:00:09]} 39. Ne7+ {[%clk 0:00:06]}  Kd8 {[%clk 0:00:08]} 40. Nc6+ {[%clk 0:00:07]}  Kc8 {[%clk 0:00:09]} 41. Ne7+ {[%clk 0:00:07]}  Kd8 {[%clk 0:00:09]} 42. Rf7 {[%clk 0:00:06]}  f2 {[%clk 0:00:09]} 43. Nc6+ {[%clk 0:00:06]}  Ke8 {[%clk 0:00:09]} 44. Rf3 {[%clk 0:00:05]}  Rg1 {[%clk 0:00:09]} 45. a5 {[%clk 0:00:05]}  f1=Q {[%clk 0:00:09]} 46. Rxf1 {[%clk 0:00:05]}  Rxf1 {[%clk 0:00:10]} 47. a6 {[%clk 0:00:06]}  Bf2 {[%clk 0:00:11]} 48. c4 {[%clk 0:00:06]}  Rb1+ {[%clk 0:00:11]} 49. Ka4 {[%clk 0:00:06]}  Kd7 {[%clk 0:00:11]} 50. Kb5 {[%clk 0:00:04]}  Kc7 {[%clk 0:00:11]} 51. c5 {[%clk 0:00:04]}  Be1 {[%clk 0:00:10]} 52. a7 {[%clk 0:00:03]}  Kb7 {[%clk 0:00:09]} 53. Kc4 {[%clk 0:00:04]}  Rc1+ {[%clk 0:00:09]} 54. Kb5 {[%clk 0:00:04]}  Rb1 {[%clk 0:00:09]} 55. Kc4 {[%clk 0:00:04]}  Rc1+ {[%clk 0:00:10]} 56. Kb5 {[%clk 0:00:05]}  Ra1 {[%clk 0:00:10]} 57. Na5+ {[%clk 0:00:03]}  Kxa7 {[%clk 0:00:10]} 58. Nb3 {[%clk 0:00:04]}  Rb1 {[%clk 0:00:09]} 59. Kc4 {[%clk 0:00:04]}  Bf2 {[%clk 0:00:09]} 60. Na5 {[%clk 0:00:04]}  Be1 {[%clk 0:00:08]} 61. Nc6+ {[%clk 0:00:03]}  Kb7 {[%clk 0:00:08]} 62. b5 {[%clk 0:00:04]}  Rc1+ {[%clk 0:00:08]} 63. Kd5 {[%clk 0:00:05]}  Bf2 {[%clk 0:00:08]} 64. Nd8+ {[%clk 0:00:04]}  Kc8 {[%clk 0:00:08]} 65. Ne6 {[%clk 0:00:04]}  Kd7 {[%clk 0:00:08]} 66. c6+ {[%clk 0:00:03]}  Ke7 {[%clk 0:00:09]} 67. c7 {[%clk 0:00:03]}  Kd7 {[%clk 0:00:09]} 68. b6 {[%clk 0:00:02]}  Bxb6 {[%clk 0:00:08]} 0-1


[Site "https://www.chess.com"]

[Event "Titled Tuesday Blitz July 05 Late 2022"]
[White "Keymer, Vincent"]
[Black "Halkias, Stelios"]
[WhiteFideId "12940690"]
[BlackFideId "4201809"]
[WhiteElo "2548"]
[BlackElo "2453"]
[Result "0-1"]
[Round "06"]
[TimeControl "180+1"]
[Date "2022.07.05"]
[WhiteClock "0:00:02"]
[BlackClock "0:00:14"]

1. Nf3 {[%clk 0:03:00]}  Nf6 {[%clk 0:02:59]} 2. c4 {[%clk 0:03:00]}  e6 {[%clk 0:02:59]} 3. Nc3 {[%clk 0:03:00]}  Bb4 {[%clk 0:02:59]} 4. Qc2 {[%clk 0:03:00]}  c5 {[%clk 0:02:57]} 5. a3 {[%clk 0:02:56]}  Bxc3 {[%clk 0:02:58]} 6. Qxc3 {[%clk 0:02:54]}  d6 {[%clk 0:02:58]} 7. b4 {[%clk 0:02:55]}  e5 {[%clk 0:02:58]} 8. d3 {[%clk 0:02:37]}  O-O {[%clk 0:02:44]} 9. Bb2 {[%clk 0:02:32]}  b6 {[%clk 0:02:43]} 10. e3 {[%clk 0:02:31]}  Nc6 {[%clk 0:02:39]} 11. Be2 {[%clk 0:02:30]}  Bg4 {[%clk 0:02:39]} 12. h3 {[%clk 0:02:21]}  Be6 {[%clk 0:02:23]} 13. b5 {[%clk 0:01:57]}  Ne7 {[%clk 0:02:18]} 14. a4 {[%clk 0:01:57]}  h6 {[%clk 0:02:15]} 15. O-O {[%clk 0:01:46]}  Ng6 {[%clk 0:02:12]} 16. Rfd1 {[%clk 0:01:34]}  Re8 {[%clk 0:02:09]} 17. Bf1 {[%clk 0:01:23]}  a5 {[%clk 0:01:56]} 18. d4 {[%clk 0:01:10]}  cxd4 {[%clk 0:01:55]} 19. exd4 {[%clk 0:01:08]}  e4 {[%clk 0:01:55]} 20. d5 {[%clk 0:00:53]}  Bxh3 {[%clk 0:01:43]} 21. Nd4 {[%clk 0:00:36]}  Bg4 {[%clk 0:01:41]} 22. Nc6 {[%clk 0:00:33]}  Qd7 {[%clk 0:01:38]} 23. Re1 {[%clk 0:00:29]}  Qf5 {[%clk 0:01:24]} 24. Qg3 {[%clk 0:00:19]}  Nh5 {[%clk 0:00:53]} 25. Qh2 {[%clk 0:00:14]}  Nhf4 {[%clk 0:00:46]} 26. Bd4 {[%clk 0:00:14]}  Ne5 {[%clk 0:00:30]} 27. Qg3 {[%clk 0:00:10]}  h5 {[%clk 0:00:30]} 28. Be3 {[%clk 0:00:07]}  g5 {[%clk 0:00:28]} 29. Bxb6 {[%clk 0:00:07]}  h4 {[%clk 0:00:28]} 30. Qe3 {[%clk 0:00:07]}  h3 {[%clk 0:00:28]} 31. Nxe5 {[%clk 0:00:07]}  Rxe5 {[%clk 0:00:25]} 32. Bd4 {[%clk 0:00:07]}  hxg2 {[%clk 0:00:24]} 33. Bxg2 {[%clk 0:00:04]}  Nxg2 {[%clk 0:00:24]} 34. Qg3 {[%clk 0:00:03]}  Nxe1 {[%clk 0:00:23]} 35. Rxe1 {[%clk 0:00:02]}  Rae8 {[%clk 0:00:23]} 36. Bxe5 {[%clk 0:00:02]}  Rxe5 {[%clk 0:00:22]} 37. b6 {[%clk 0:00:02]}  Bf3 {[%clk 0:00:21]} 38. b7 {[%clk 0:00:02]}  Re8 {[%clk 0:00:21]} 39. Qxd6 {[%clk 0:00:01]}  Qh3 {[%clk 0:00:15]} 40. Qg3 {[%clk 0:00:02]}  Qh1# {[%clk 0:00:14]} 0-1


[Site "https://www.chess.com"]

[Event "Titled Tuesday Blitz July 05 Late 2022"]
[White "Kohler, Aran"]
[Black "Kopczynski, Michal"]
[WhiteFideId "1002856"]
[BlackFideId "1124200"]
[WhiteElo "2290"]
[BlackElo "2235"]
[Result "0-1"]
[Round "06"]
[TimeControl "180+1"]
[Date "2022.07.06"]
[WhiteClock "0:00:20"]
[BlackClock "0:00:13"]

1. e4 {[%clk 0:03:00]}  c5 {[%clk 0:02:59]} 2. Nf3 {[%clk 0:03:00]}  d6 {[%clk 0:03:00]} 3. d4 {[%clk 0:03:00]}  cxd4 {[%clk 0:03:01]} 4. Nxd4 {[%clk 0:03:00]}  Nf6 {[%clk 0:03:01]} 5. Nc3 {[%clk 0:03:00]}  g6 {[%clk 0:03:01]} 6. h3 {[%clk 0:02:54]}  Bg7 {[%clk 0:03:01]} 7. Bc4 {[%clk 0:02:53]}  O-O {[%clk 0:03:02]} 8. Bb3 {[%clk 0:02:53]}  Nc6 {[%clk 0:03:02]} 9. Be3 {[%clk 0:02:53]}  Bd7 {[%clk 0:02:58]} 10. O-O {[%clk 0:02:49]}  Qa5 {[%clk 0:02:56]} 11. Qd2 {[%clk 0:02:37]}  Rfc8 {[%clk 0:02:50]} 12. Rad1 {[%clk 0:02:35]}  Ne5 {[%clk 0:02:41]} 13. Nd5 {[%clk 0:02:07]}  Qxd2 {[%clk 0:02:36]} 14. Rxd2 {[%clk 0:02:08]}  Nxd5 {[%clk 0:01:58]} 15. Bxd5 {[%clk 0:02:05]}  Nc4 {[%clk 0:01:55]} 16. Bxc4 {[%clk 0:02:01]}  Rxc4 {[%clk 0:01:56]} 17. c3 {[%clk 0:02:01]}  Rac8 {[%clk 0:01:40]} 18. f3 {[%clk 0:02:01]}  b5 {[%clk 0:01:38]} 19. a3 {[%clk 0:02:00]}  a5 {[%clk 0:01:37]} 20. Rfd1 {[%clk 0:02:00]}  b4 {[%clk 0:01:32]} 21. axb4 {[%clk 0:01:53]}  axb4 {[%clk 0:01:33]} 22. Ne2 {[%clk 0:01:45]}  bxc3 {[%clk 0:01:24]} 23. bxc3 {[%clk 0:01:44]}  Ba4 {[%clk 0:01:13]} 24. Rc1 {[%clk 0:01:39]}  f5 {[%clk 0:00:52]} 25. exf5 {[%clk 0:01:38]}  gxf5 {[%clk 0:00:53]} 26. Bd4 {[%clk 0:01:35]}  Bh6 {[%clk 0:00:48]} 27. f4 {[%clk 0:01:34]}  Kf7 {[%clk 0:00:43]} 28. Ra1 {[%clk 0:01:25]}  Rg8 {[%clk 0:00:41]} 29. Rda2 {[%clk 0:01:16]}  Bc6 {[%clk 0:00:41]} 30. g3 {[%clk 0:01:17]}  Bf3 {[%clk 0:00:34]} 31. Kf2 {[%clk 0:01:17]}  Be4 {[%clk 0:00:33]} 32. Ra7 {[%clk 0:01:15]}  Bf8 {[%clk 0:00:26]} 33. R1a4 {[%clk 0:01:03]}  Rxa4 {[%clk 0:00:25]} 34. Rxa4 {[%clk 0:01:02]}  h5 {[%clk 0:00:26]} 35. h4 {[%clk 0:01:01]}  Bg7 {[%clk 0:00:17]} 36. Bxg7 {[%clk 0:01:00]}  Rxg7 {[%clk 0:00:18]} 37. Nd4 {[%clk 0:01:00]}  Kf6 {[%clk 0:00:18]} 38. Ra6 {[%clk 0:00:59]}  Rg8 {[%clk 0:00:17]} 39. Ra7 {[%clk 0:00:54]}  Rc8 {[%clk 0:00:16]} 40. Ra3 {[%clk 0:00:50]}  Rb8 {[%clk 0:00:16]} 41. Ke3 {[%clk 0:00:49]}  Rb2 {[%clk 0:00:16]} 42. Nf3 {[%clk 0:00:49]}  Rg2 {[%clk 0:00:15]} 43. Ng5 {[%clk 0:00:45]}  Rxg3+ {[%clk 0:00:15]} 44. Kd4 {[%clk 0:00:45]}  Rg4 {[%clk 0:00:14]} 45. Nxe4+ {[%clk 0:00:44]}  fxe4 {[%clk 0:00:15]} 46. Kxe4 {[%clk 0:00:44]}  Rxh4 {[%clk 0:00:15]} 47. Ra6 {[%clk 0:00:37]}  Rh3 {[%clk 0:00:14]} 48. c4 {[%clk 0:00:36]}  Rc3 {[%clk 0:00:14]} 49. Rc6 {[%clk 0:00:34]}  h4 {[%clk 0:00:13]} 50. Rc8 {[%clk 0:00:34]}  h3 {[%clk 0:00:13]} 51. Kd4 {[%clk 0:00:34]}  Rc2 {[%clk 0:00:13]} 52. Rh8 {[%clk 0:00:34]}  h2 {[%clk 0:00:14]} 53. Rh5 {[%clk 0:00:32]}  Kg6 {[%clk 0:00:13]} 54. Rh3 {[%clk 0:00:29]}  Kf5 {[%clk 0:00:14]} 55. Kd5 {[%clk 0:00:30]}  Kxf4 {[%clk 0:00:14]} 56. Ke6 {[%clk 0:00:30]}  Kg4 {[%clk 0:00:13]} 57. Rh8 {[%clk 0:00:29]}  Kg3 {[%clk 0:00:13]} 58. Kxe7 {[%clk 0:00:29]}  Rxc4 {[%clk 0:00:13]} 59. Kxd6 {[%clk 0:00:29]}  Rh4 {[%clk 0:00:12]} 60. Rg8+ {[%clk 0:00:29]}  Rg4 {[%clk 0:00:13]} 61. Rh8 {[%clk 0:00:29]}  Kg2 {[%clk 0:00:13]} 62. Ke5 {[%clk 0:00:20]}  h1=Q {[%clk 0:00:13]} 0-1


[Site "https://www.chess.com"]

[Event "Titled Tuesday Blitz July 05 Late 2022"]
[White "Ladan, Nicholas"]
[Black "Idani, Pouya"]
[WhiteFideId "30918855"]
[BlackFideId "12510130"]
[WhiteElo "2167"]
[BlackElo "2610"]
[Result "0-1"]
[Round "06"]
[TimeControl "180+1"]
[Date "2022.07.06"]
[WhiteClock "0:00:03"]
[BlackClock "0:00:23"]

1. d4 {[%clk 0:03:00]}  Nf6 {[%clk 0:02:50]} 2. c4 {[%clk 0:03:00]}  g6 {[%clk 0:02:50]} 3. Nf3 {[%clk 0:03:00]}  Bg7 {[%clk 0:02:49]} 4. g3 {[%clk 0:03:01]}  O-O {[%clk 0:02:48]} 5. Bg2 {[%clk 0:03:02]}  d6 {[%clk 0:02:48]} 6. O-O {[%clk 0:03:02]}  Nc6 {[%clk 0:02:49]} 7. Nc3 {[%clk 0:03:02]}  Bf5 {[%clk 0:02:49]} 8. d5 {[%clk 0:02:49]}  Na5 {[%clk 0:02:48]} 9. Re1 {[%clk 0:02:45]}  Nxc4 {[%clk 0:02:37]} 10. e4 {[%clk 0:02:44]}  Bg4 {[%clk 0:02:30]} 11. h3 {[%clk 0:02:41]}  Bxf3 {[%clk 0:02:23]} 12. Bxf3 {[%clk 0:02:38]}  c6 {[%clk 0:02:21]} 13. Bg2 {[%clk 0:02:26]}  c5 {[%clk 0:02:02]} 14. a4 {[%clk 0:02:21]}  a6 {[%clk 0:01:58]} 15. Qe2 {[%clk 0:02:05]}  Na5 {[%clk 0:01:58]} 16. Rb1 {[%clk 0:01:53]}  Nb3 {[%clk 0:01:53]} 17. Be3 {[%clk 0:01:43]}  Rb8 {[%clk 0:01:47]} 18. Qc4 {[%clk 0:01:29]}  Na5 {[%clk 0:01:46]} 19. Qe2 {[%clk 0:01:26]}  Nd7 {[%clk 0:01:46]} 20. Nd1 {[%clk 0:01:13]}  c4 {[%clk 0:01:34]} 21. h4 {[%clk 0:00:53]}  b5 {[%clk 0:01:29]} 22. axb5 {[%clk 0:00:46]}  axb5 {[%clk 0:01:30]} 23. h5 {[%clk 0:00:46]}  Ne5 {[%clk 0:01:29]} 24. h6 {[%clk 0:00:45]}  Bh8 {[%clk 0:01:29]} 25. Nc3 {[%clk 0:00:41]}  Nd3 {[%clk 0:01:22]} 26. Red1 {[%clk 0:00:39]}  Nb3 {[%clk 0:01:09]} 27. Qc2 {[%clk 0:00:30]}  Nd4 {[%clk 0:01:05]} 28. Bxd4 {[%clk 0:00:29]}  Bxd4 {[%clk 0:01:06]} 29. Rxd3 {[%clk 0:00:20]}  cxd3 {[%clk 0:01:05]} 30. Qxd3 {[%clk 0:00:21]}  Bf6 {[%clk 0:00:57]} 31. Nxb5 {[%clk 0:00:19]}  Qa5 {[%clk 0:00:58]} 32. Nd4 {[%clk 0:00:17]}  Qa2 {[%clk 0:00:47]} 33. Nc6 {[%clk 0:00:13]}  Rxb2 {[%clk 0:00:46]} 34. Rxb2 {[%clk 0:00:12]}  Qxb2 {[%clk 0:00:47]} 35. Qa6 {[%clk 0:00:06]}  Qc1+ {[%clk 0:00:45]} 36. Bf1 {[%clk 0:00:03]}  Qxh6 {[%clk 0:00:46]} 37. Qb7 {[%clk 0:00:04]}  Re8 {[%clk 0:00:36]} 38. Qd7 {[%clk 0:00:02]}  Qf8 {[%clk 0:00:36]} 39. Bb5 {[%clk 0:00:02]}  Ra8 {[%clk 0:00:33]} 40. Kg2 {[%clk 0:00:01]}  Kg7 {[%clk 0:00:22]} 41. Be2 {[%clk 0:00:02]}  Qc8 {[%clk 0:00:20]} 42. Qxc8 {[%clk 0:00:02]}  Rxc8 {[%clk 0:00:20]} 43. Bf3 {[%clk 0:00:02]}  Rc7 {[%clk 0:00:21]} 44. Nb4 {[%clk 0:00:02]}  Rb7 {[%clk 0:00:21]} 45. Nd3 {[%clk 0:00:03]}  Rb3 {[%clk 0:00:20]} 46. Nf4 {[%clk 0:00:03]}  Be5 {[%clk 0:00:19]} 47. Ne2 {[%clk 0:00:04]}  Rb2 {[%clk 0:00:20]} 48. Ng1 {[%clk 0:00:03]}  Bd4 {[%clk 0:00:20]} 49. Nh3 {[%clk 0:00:03]}  h6 {[%clk 0:00:20]} 50. Bd1 {[%clk 0:00:02]}  g5 {[%clk 0:00:20]} 51. Kf3 {[%clk 0:00:02]}  e6 {[%clk 0:00:20]} 52. dxe6 {[%clk 0:00:02]}  fxe6 {[%clk 0:00:21]} 53. Be2 {[%clk 0:00:02]}  d5 {[%clk 0:00:20]} 54. exd5 {[%clk 0:00:02]}  exd5 {[%clk 0:00:21]} 55. Bd3 {[%clk 0:00:03]}  Rb3 {[%clk 0:00:20]} 56. Ke2 {[%clk 0:00:03]}  Be5 {[%clk 0:00:20]} 57. f4 {[%clk 0:00:03]}  Bf6 {[%clk 0:00:20]} 58. fxg5 {[%clk 0:00:04]}  hxg5 {[%clk 0:00:21]} 59. Nf2 {[%clk 0:00:04]}  Bd4 {[%clk 0:00:21]} 60. Nd1 {[%clk 0:00:04]}  Ra3 {[%clk 0:00:20]} 61. Ne3 {[%clk 0:00:03]}  Bxe3 {[%clk 0:00:20]} 62. Kxe3 {[%clk 0:00:03]}  Kf6 {[%clk 0:00:21]} 63. Ke2 {[%clk 0:00:03]}  Ke5 {[%clk 0:00:21]} 64. g4 {[%clk 0:00:03]}  Kf4 {[%clk 0:00:21]} 65. Bf5 {[%clk 0:00:04]}  Re3+ {[%clk 0:00:21]} 66. Kf2 {[%clk 0:00:04]}  Rf3+ {[%clk 0:00:21]} 67. Ke2 {[%clk 0:00:05]}  Rg3 {[%clk 0:00:22]} 68. Kf2 {[%clk 0:00:04]}  Rxg4 {[%clk 0:00:22]} 69. Bd7 {[%clk 0:00:05]}  Rg3 {[%clk 0:00:22]} 70. Ke2 {[%clk 0:00:05]}  Ra3 {[%clk 0:00:22]} 71. Kf2 {[%clk 0:00:05]}  g4 {[%clk 0:00:23]} 72. Kg2 {[%clk 0:00:04]}  Ra2+ {[%clk 0:00:22]} 73. Kf1 {[%clk 0:00:04]}  d4 {[%clk 0:00:22]} 74. Bc6 {[%clk 0:00:04]}  Rb2 {[%clk 0:00:22]} 75. Ke1 {[%clk 0:00:04]}  Ke3 {[%clk 0:00:23]} 76. Kd1 {[%clk 0:00:03]}  g3 {[%clk 0:00:23]} 77. Ba8 {[%clk 0:00:03]}  g2 {[%clk 0:00:23]} 78. Bxg2 {[%clk 0:00:02]}  Rxg2 {[%clk 0:00:23]} 79. Kc1 {[%clk 0:00:03]}  d3 {[%clk 0:00:23]} 0-1


[Site "https://www.chess.com"]

[Event "Titled Tuesday Blitz July 05 Late 2022"]
[White "Martinez Alcantara, Jose Eduardo"]
[Black "Eljanov, Pavel"]
[WhiteFideId "3805662"]
[BlackFideId "14102951"]
[WhiteElo "2703"]
[BlackElo "2601"]
[Result "1/2-1/2"]
[Round "06"]
[TimeControl "180+1"]
[Date "2022.07.05"]
[WhiteClock "0:00:07"]
[BlackClock "0:00:10"]

1. e4 {[%clk 0:03:00]}  c6 {[%clk 0:02:59]} 2. d4 {[%clk 0:03:01]}  d5 {[%clk 0:03:00]} 3. e5 {[%clk 0:03:01]}  Bf5 {[%clk 0:03:00]} 4. h4 {[%clk 0:03:02]}  h5 {[%clk 0:03:00]} 5. Bd3 {[%clk 0:03:02]}  Bxd3 {[%clk 0:02:59]} 6. Qxd3 {[%clk 0:03:03]}  Qa5+ {[%clk 0:02:59]} 7. b4 {[%clk 0:03:03]}  Qxb4+ {[%clk 0:02:57]} 8. Nd2 {[%clk 0:03:03]}  e6 {[%clk 0:02:56]} 9. Rb1 {[%clk 0:03:03]}  Qe7 {[%clk 0:02:56]} 10. Ne2 {[%clk 0:03:04]}  b5 {[%clk 0:02:53]} 11. a4 {[%clk 0:02:54]}  a6 {[%clk 0:02:52]} 12. Nf4 {[%clk 0:02:50]}  Qc7 {[%clk 0:02:38]} 13. O-O {[%clk 0:02:48]}  Ne7 {[%clk 0:02:32]} 14. Nf3 {[%clk 0:02:44]}  Nf5 {[%clk 0:02:30]} 15. Ra1 {[%clk 0:02:29]}  g6 {[%clk 0:02:21]} 16. g3 {[%clk 0:02:27]}  Be7 {[%clk 0:02:20]} 17. Nh3 {[%clk 0:02:28]}  Nd7 {[%clk 0:02:17]} 18. Bg5 {[%clk 0:02:28]}  Kf8 {[%clk 0:01:58]} 19. Kh2 {[%clk 0:02:24]}  Nb6 {[%clk 0:01:56]} 20. Bxe7+ {[%clk 0:02:09]}  Qxe7 {[%clk 0:01:55]} 21. axb5 {[%clk 0:02:09]}  cxb5 {[%clk 0:01:54]} 22. Rg1 {[%clk 0:02:03]}  Na4 {[%clk 0:01:50]} 23. Nf4 {[%clk 0:01:51]}  Rc8 {[%clk 0:01:50]} 24. Ne2 {[%clk 0:01:52]}  Kg7 {[%clk 0:01:48]} 25. Kh3 {[%clk 0:01:51]}  Rc4 {[%clk 0:01:39]} 26. Rac1 {[%clk 0:01:43]}  b4 {[%clk 0:01:33]} 27. g4 {[%clk 0:01:24]}  hxg4+ {[%clk 0:01:32]} 28. Rxg4 {[%clk 0:01:25]}  Nc3 {[%clk 0:01:31]} 29. Ng3 {[%clk 0:01:03]}  Nxg3 {[%clk 0:01:24]} 30. fxg3 {[%clk 0:01:04]}  Qc7 {[%clk 0:01:15]} 31. Ng5 {[%clk 0:00:58]}  Ne4 {[%clk 0:01:15]} 32. Rf1 {[%clk 0:00:31]}  Rc3 {[%clk 0:01:08]} 33. Qxa6 {[%clk 0:00:31]}  Nxg5+ {[%clk 0:00:36]} 34. Rxg5 {[%clk 0:00:32]}  Rxc2 {[%clk 0:00:32]} 35. Qd3 {[%clk 0:00:32]}  Rc3 {[%clk 0:00:27]} 36. Qd2 {[%clk 0:00:33]}  Qe7 {[%clk 0:00:25]} 37. Rf6 {[%clk 0:00:30]}  Rc7 {[%clk 0:00:23]} 38. Qd3 {[%clk 0:00:28]}  Rh6 {[%clk 0:00:22]} 39. Kg4 {[%clk 0:00:24]}  Rb7 {[%clk 0:00:22]} 40. h5 {[%clk 0:00:25]}  Qe8 {[%clk 0:00:16]} 41. hxg6 {[%clk 0:00:12]}  fxg6 {[%clk 0:00:17]} 42. Qb3 {[%clk 0:00:10]}  Qb5 {[%clk 0:00:16]} 43. Qf3 {[%clk 0:00:07]}  Qe8 {[%clk 0:00:13]} 44. Qb3 {[%clk 0:00:06]}  Qb5 {[%clk 0:00:09]} 45. Qf3 {[%clk 0:00:07]}  Qe8 {[%clk 0:00:10]} 46. Qb3 {[%clk 0:00:07]} 1/2-1/2


[Site "https://www.chess.com"]